bitfinex/quotes_BTCUSD_20251124
["timestamp","ask_amount","ask_price","bid_price","bid_amount"]
[1763969648113,0.323,87186.0,87165.0,0.02294498]
[1763969649895,0.01703,87188.0,87165.0,0.02394498]
[1763969650094,0.01703,87188.0,87165.0,0.52394498]
[1763969650317,0.01703,87188.0,87165.0,0.501]
[1763969651216,0.01703,87188.0,87165.0,0.5]
[1763969651411,0.01703,87188.0,87166.0,0.02294472]
[1763969653138,0.01703,87188.0,87166.0,0.02394472]
[1763969654786,0.323,87198.0,87166.0,0.02394472]
[1763969654958,0.0004,87200.0,87178.0,0.09768936]
[1763969656735,0.0004,87200.0,87182.0,0.87068078]
[1763969656903,0.0004,87200.0,87183.0,0.05210249]
[1763969658431,0.0004,87200.0,87183.0,0.05310249]
[1763969659181,0.0004,87200.0,87183.0,0.07196636]
[1763969659395,0.0004,87200.0,87183.0,0.07396636]
[1763969660036,0.0004,87200.0,87183.0,0.07804274]
[1763969660457,0.0004,87200.0,87183.0,0.05510249]
[1763969663562,0.0004,87200.0,87184.0,0.14604932]
[1763969664800,0.0004,87200.0,87184.0,0.14704932]
[1763969665407,0.0004,87200.0,87184.0,0.14904932]
[1763969666199,0.0004,87200.0,87191.0,0.05179]
[1763969667400,0.0004,87200.0,87191.0,0.05279]
[1763969668923,0.01774,87199.0,87191.0,0.05479]
[1763969669736,0.0004,87200.0,87191.0,0.05479]
[1763969669962,0.0004,87200.0,87191.0,0.05379]
[1763969670381,0.0004,87200.0,87191.0,0.05479]
[1763969670821,0.0004,87200.0,87191.0,0.10689249]
[1763969671221,0.0004,87200.0,87191.0,0.10489249]
[1763969671424,0.0004,87200.0,87191.0,0.10589249]
[1763969671823,0.0004,87200.0,87191.0,0.10389249]
[1763969672024,0.0004,87200.0,87191.0,0.10589249]
[1763969672428,0.323,87226.0,87191.0,0.10589249]
[1763969672606,0.323,87224.0,87207.0,0.09768936]
[1763969672774,0.323,87224.0,87208.0,0.02293367]
[1763969673171,0.00037672,87209.0,87208.0,0.02293367]
[1763969674320,0.00037672,87209.0,87208.0,0.02393367]
[1763969674524,0.00037672,87209.0,87208.0,0.52393367]
[1763969674912,0.00037672,87209.0,87208.0,0.501]
[1763969675107,0.00387741,87209.0,87208.0,0.501]
[1763969675313,0.00387741,87209.0,87208.0,0.503]
[1763969677070,0.00387741,87209.0,87208.0,0.502]
[1763969677309,0.02492741,87209.0,87208.0,0.501]
[1763969677490,0.00387741,87209.0,87208.0,0.501]
[1763969677696,0.00387741,87209.0,87208.0,0.503]
[1763969679139,0.05759741,87209.0,87208.0,0.503]
[1763969679979,0.05759741,87209.0,87208.0,0.502]
[1763969680176,0.05759741,87209.0,87208.0,0.503]
[1763969681066,0.05759741,87209.0,87208.0,0.501]
[1763969681358,0.05759741,87209.0,87208.0,0.503]
[1763969685286,2.43056249,87209.0,87208.0,0.503]
[1763969685500,2.44709249,87209.0,87208.0,0.503]
[1763969685852,2.44709249,87209.0,87208.0,0.42062336]
[1763969685853,2.86852892,87209.0,87208.0,0.42062336]
[1763969686046,2.86852892,87209.0,87191.0,0.05179]
[1763969686047,0.04970803,87192.0,87191.0,0.05179]
[1763969686290,2.50822739,87192.0,87191.0,0.05179]
[1763969686488,2.84797058,87192.0,87191.0,0.05179]
[1763969687126,2.84797058,87192.0,87143.0,0.03233]
[1763969687127,0.04970803,87166.0,87143.0,0.03233]
[1763969687284,0.323,87165.0,87147.0,0.01241228]
[1763969687466,0.36941,87165.0,87147.0,0.01241228]
[1763969687676,0.03325,87164.0,87147.0,0.01241228]
[1763969688372,0.33616,87165.0,87147.0,0.01241228]
[1763969688635,0.33616,87165.0,87148.0,0.03233]
[1763969690010,0.09768936,87166.0,87148.0,0.03233]
[1763969690172,0.09768936,87166.0,87164.0,0.01202]
[1763969690374,0.32325875,87168.0,87164.0,0.01202]
[1763969691333,0.00025875,87168.0,87164.0,0.01202]
[1763969691955,0.01653,87176.0,87167.0,0.02186]
[1763969692114,2.0,87180.0,87168.0,0.02186]
[1763969692473,2.0,87180.0,87164.0,0.01302]
[1763969692474,2.0,87202.0,87179.0,0.02186]
[1763969692668,0.01653,87203.0,87173.0,0.09768936]
[1763969692669,2.0,87203.0,87180.0,0.08915104]
[1763969692968,2.0,87202.0,87180.0,0.08915104]
[1763969693115,2.0,87202.0,87181.0,0.03233]
[1763969693311,0.323,87201.0,87182.0,0.02294051]
[1763969693524,0.323,87199.0,87182.0,0.00010802]
[1763969693740,0.323,87199.0,87183.0,0.03233]
[1763969694737,0.323,87201.0,87183.0,0.03233]
[1763969694855,0.323,87199.0,87183.0,0.03233]
[1763969695063,0.32650069,87199.0,87183.0,0.03233]
[1763969696120,0.00350069,87199.0,87183.0,0.03333]
[1763969696685,0.03325,87198.0,87183.0,0.001]
[1763969696885,0.0213,87184.0,87183.0,0.001]
[1763969697572,0.01653,87189.0,87183.0,0.001]
[1763969697756,0.323,87192.0,87183.0,0.001]
[1763969697916,0.323,87196.0,87188.0,0.02186]
[1763969698117,0.323,87192.0,87188.0,0.02186]
[1763969698321,0.323,87192.0,87191.0,0.02186]
[1763969698524,0.323,87192.0,87191.0,0.05419]
[1763969699120,0.323,87192.0,87182.0,0.00010802]
[1763969699121,0.323,87192.0,87184.0,0.03233]
[1763969699234,0.03675069,87199.0,87182.0,0.00010802]
[1763969699640,0.59352307,87192.0,87182.0,0.00010802]
[1763969700548,0.00026013,87198.0,87182.0,0.00010802]
[1763969700963,0.00026013,87198.0,87182.0,0.00110802]
[1763969701960,0.59352307,87192.0,87182.0,0.00110802]
[1763969702166,2.33953,87183.0,87182.0,0.00010802]
[1763969702391,0.323,87183.0,87182.0,0.00010802]
[1763969702745,0.37755,87183.0,87182.0,0.00010802]
[1763969703833,0.323,87183.0,87182.0,0.02464802]
[1763969704134,0.323,87183.0,87182.0,0.05927802]
[1763969706752,0.00350069,87199.0,87182.0,0.05927802]
[1763969706919,0.00350069,87199.0,87198.0,0.03656]
[1763969707433,0.00350069,87199.0,87198.0,0.07119]
[1763969709198,0.00350069,87199.0,87198.0,0.07319]
[1763969709962,0.00350069,87199.0,87198.0,0.07219]
[1763969710171,0.00350069,87199.0,87198.0,0.07319]
[1763969718402,0.00350069,87199.0,87198.0,0.03856]
[1763969718606,0.00350069,87199.0,87198.0,0.002]
[1763969719206,0.00350069,87199.0,87198.0,0.02654]
[1763969719546,0.00350069,87199.0,87198.0,0.02454]
[1763969719769,0.59352307,87210.0,87198.0,0.02454]
[1763969720059,0.59352307,87210.0,87193.0,0.01202]
[1763969720226,2.0,87209.0,87193.0,0.01202]
[1763969720767,1.79775714,87208.0,87193.0,0.01202]
[1763969720953,2.0,87208.0,87193.0,0.01202]
[1763969721302,2.0,87208.0,87198.0,0.001]
[1763969721846,2.0,87208.0,87193.0,0.01202]
[1763969722045,0.323,87207.0,87193.0,0.01202]
[1763969722421,0.01728,87206.0,87193.0,0.01202]
[1763969723260,0.323,87209.0,87194.0,0.03463]
[1763969723422,0.323,87207.0,87205.0,0.01202]
[1763969723836,0.323,87207.0,87206.0,0.05917]
[1763969724469,0.00025113,87213.0,87206.0,0.05917]
[1763969724734,0.00025113,87213.0,87212.0,0.02454]
[1763969724898,0.00025113,87213.0,87212.0,0.05917]
[1763969725868,0.00025113,87213.0,87212.0,0.06117]
[1763969726874,0.00025113,87213.0,87212.0,0.06217]
[1763969728094,0.00026066,87247.0,87212.0,0.06217]
[1763969728095,0.01799718,87229.0,87212.0,0.11427249]
[1763969728281,0.03082696,87265.0,87212.0,0.11427249]
[1763969728282,0.01616288,87255.0,87230.0,0.05210249]
[1763969728507,0.00031759,87250.0,87249.0,0.03656]
[1763969728708,0.01799518,87273.0,87249.0,0.03656]
[1763969728859,0.01799518,87273.0,87259.0,0.02454]
[1763969728860,0.03425383,87273.0,87259.0,0.02454]
[1763969729059,0.01728,87287.0,87259.0,0.02454]
[1763969729259,0.323,87283.0,87272.0,0.02454]
[1763969729464,0.59352307,87282.0,87272.0,0.02454]
[1763969729667,0.59352307,87282.0,87273.0,0.01202]
[1763969730298,0.02293,87274.0,87258.0,0.01696]
[1763969730507,0.03522,87281.0,87258.0,0.01696]
[1763969730508,0.323,87269.0,87264.0,0.01202]
[1763969731101,0.323,87269.0,87263.0,0.01434]
[1763969731909,0.323,87269.0,87249.0,0.01202]
[1763969731910,0.02293,87264.0,87249.0,0.01202]
[1763969732110,0.323,87258.0,87249.0,0.01202]
[1763969733286,0.323,87258.0,87234.0,0.01696]
[1763969733287,0.09768936,87255.0,87234.0,0.01696]
[1763969733530,0.323,87249.0,87235.0,0.13231936]
[1763969733764,0.323,87249.0,87236.0,0.03666]
[1763969734207,0.323,87249.0,87234.0,0.01707759]
[1763969734208,0.00075315,87237.0,87234.0,0.01707759]
[1763969734426,0.59352307,87244.0,87234.0,0.01707759]
[1763969734660,0.34091,87243.0,87234.0,0.01707759]
[1763969735577,0.323,87243.0,87242.0,0.02327]
[1763969735800,0.01228,87260.0,87242.0,0.02327]
[1763969735801,0.323,87251.0,87242.0,0.02327]
[1763969736249,0.323,87251.0,87234.0,0.01707759]
[1763969736472,0.323,87243.0,87234.0,0.01707759]
[1763969738444,0.35804,87243.0,87234.0,0.00011759]
[1763969738667,0.323,87243.0,87234.0,0.00011759]
[1763969739539,0.01791,87242.0,87234.0,0.00011759]
[1763969739748,0.0006904,87235.0,87234.0,0.00011759]
[1763969741290,0.0006904,87235.0,87234.0,0.00111759]
[1763969742588,0.0006904,87235.0,87234.0,0.00211759]
[1763969743249,0.0006904,87235.0,87234.0,0.06204759]
[1763969743779,0.0006904,87235.0,87234.0,0.02538759]
[1763969743909,0.0006904,87235.0,87234.0,0.00211759]
[1763969746367,0.59352307,87244.0,87234.0,0.00211759]
[1763969747543,0.59352307,87244.0,87234.0,0.00011759]
[1763969747761,0.01791,87248.0,87234.0,0.00011759]
[1763969747936,0.59352307,87244.0,87235.0,0.03445]
[1763969748137,0.0354,87256.0,87235.0,0.03445]
[1763969748359,0.59352307,87245.0,87235.0,0.03445]
[1763969748572,0.59352307,87245.0,87244.0,0.0225]
[1763969748789,0.323,87245.0,87244.0,0.0225]
[1763969748991,0.323,87245.0,87244.0,0.05695]
[1763969749422,0.01799257,87257.0,87244.0,0.05695]
[1763969749747,0.59352307,87254.0,87247.0,0.09768936]
[1763969749949,0.59352307,87254.0,87245.0,0.03445]
[1763969749950,0.323,87253.0,87245.0,0.03445]
[1763969750161,0.323,87253.0,87239.0,0.09768936]
[1763969750478,0.323,87253.0,87239.0,0.13213936]
[1763969750710,0.323,87253.0,87239.0,0.09768936]
[1763969750918,0.323,87253.0,87240.0,0.03445]
[1763969752181,0.323,87253.0,87234.0,0.03456759]
[1763969752404,0.323,87243.0,87234.0,0.03456759]
[1763969753581,0.323251,87243.0,87234.0,0.03456759]
[1763969753949,0.323251,87243.0,87242.0,0.0225]
[1763969754209,0.000251,87243.0,87234.0,0.00011759]
[1763969754417,0.323251,87243.0,87234.0,0.00011759]
[1763969754798,0.01333,87242.0,87234.0,0.00011759]
[1763969755013,0.323251,87243.0,87234.0,0.00011759]
[1763969761018,0.0354,87242.0,87234.0,0.00011759]
[1763969761750,0.323251,87243.0,87234.0,0.00011759]
[1763969762288,0.000251,87243.0,87234.0,0.00011759]
[1763969762433,0.323251,87243.0,87234.0,0.00011759]
[1763969762768,0.323251,87243.0,87242.0,0.03452]
[1763969763128,0.000251,87243.0,87242.0,0.06897]
[1763969769060,0.000251,87243.0,87242.0,0.03452]
[1763969769667,0.000251,87243.0,87242.0,0.01202]
[1763969769932,0.000251,87243.0,87234.0,0.00011759]
[1763969770092,0.381251,87243.0,87234.0,0.00011759]
[1763969770282,0.03998,87235.0,87234.0,0.00011759]
[1763969770466,0.01737,87235.0,87234.0,0.00011759]
[1763969770667,0.358641,87243.0,87234.0,0.00011759]
[1763969770668,0.01737,87240.0,87234.0,0.00011759]
[1763969771086,0.358641,87243.0,87234.0,0.00011759]
[1763969771087,0.323251,87243.0,87234.0,0.00011759]
[1763969771920,0.03998,87235.0,87234.0,0.00011759]
[1763969772282,0.01737,87235.0,87234.0,0.00011759]
[1763969773006,0.01737,87241.0,87234.0,0.00011759]
[1763969773594,0.03539,87240.0,87234.0,0.00011759]
[1763969774007,0.01737,87241.0,87234.0,0.00011759]
[1763969774541,0.01837,87241.0,87234.0,0.00011759]
[1763969775360,0.02261,87235.0,87234.0,0.00011759]
[1763969775904,0.03539,87240.0,87234.0,0.00011759]
[1763969776123,0.01837,87241.0,87234.0,0.00011759]
[1763969776323,0.01737,87241.0,87234.0,0.00011759]
[1763969776970,0.02261,87235.0,87234.0,0.00011759]
[1763969777164,0.01737,87241.0,87234.0,0.00011759]
[1763969777322,0.01837,87241.0,87234.0,0.00011759]
[1763969777522,0.02261,87235.0,87234.0,0.00011759]
[1763969778061,0.03539,87240.0,87234.0,0.00011759]
[1763969778275,0.01737,87241.0,87234.0,0.00011759]
[1763969778850,0.02261,87235.0,87234.0,0.00011759]
[1763969779638,0.323,87236.0,87234.0,0.00011759]
[1763969780043,0.01737,87241.0,87234.0,0.00011759]
[1763969781273,0.01837,87241.0,87234.0,0.00011759]
[1763969783276,0.05376,87241.0,87234.0,0.00011759]
[1763969783482,0.01837,87241.0,87234.0,0.00011759]
[1763969785918,0.05376,87241.0,87234.0,0.00011759]
[1763969786131,0.03998,87235.0,87234.0,0.00011759]
[1763969786828,0.07537,87235.0,87234.0,0.00011759]
[1763969787350,0.03998,87235.0,87234.0,0.00011759]
[1763969787677,0.07537,87235.0,87234.0,0.00011759]
[1763969788477,0.03998,87235.0,87234.0,0.00011759]
[1763969790759,0.07537,87235.0,87234.0,0.00011759]
[1763969791051,2.39837,87235.0,87234.0,0.00011759]
[1763969791250,2.75446087,87235.0,87234.0,0.00011759]
[1763969791379,2.75446087,87235.0,87192.0,0.01103]
[1763969791380,0.3865663,87231.0,87195.0,0.01512]
[1763969791567,0.323,87229.0,87196.0,0.09768936]
[1763969791768,0.323,87219.0,87197.0,0.02293656]
[1763969791970,0.323,87217.0,87197.0,0.05696656]
[1763969792217,0.323,87217.0,87198.0,0.03403]
[1763969792418,0.323,87217.0,87199.0,0.02293604]
[1763969792939,0.323,87217.0,87200.0,0.03403]
[1763969793131,2.0,87218.0,87201.0,0.02293551]
[1763969793333,0.323,87209.0,87201.0,0.02293551]
[1763969793477,0.323,87209.0,87202.0,0.03403]
[1763969793682,0.323,87209.0,87208.0,0.02416]
[1763969794030,0.323,87209.0,87202.0,0.03403]
[1763969794610,0.323,87209.0,87208.0,0.02168]
[1763969795162,2.0,87217.0,87202.0,0.03403]
[1763969796991,0.323,87216.0,87202.0,0.03403]
[1763969798967,2.0,87217.0,87202.0,0.03403]
[1763969799519,2.0,87217.0,87203.0,0.01202]
[1763969799744,0.03528,87216.0,87203.0,0.01202]
[1763969799944,0.08498803,87216.0,87203.0,0.01202]
[1763969800147,0.03955,87204.0,87186.0,0.03452]
[1763969800460,0.03955,87204.0,87173.0,0.01202]
[1763969800461,0.04970803,87191.0,87178.0,0.01526]
[1763969800663,0.03313,87193.0,87173.0,0.01202]
[1763969800664,0.02309,87182.0,87173.0,0.01202]
[1763969800865,0.05837,87182.0,87165.0,0.01512]
[1763969801064,0.03528,87189.0,87171.0,0.01202]
[1763969801264,0.03528,87189.0,87181.0,0.00257029]
[1763969801488,0.03637143,87182.0,87181.0,0.00257029]
[1763969801937,0.44435946,87182.0,87181.0,0.00257029]
[1763969803285,0.323,87182.0,87181.0,0.02425029]
[1763969804295,0.323,87182.0,87181.0,0.00257029]
[1763969804497,0.34609,87182.0,87181.0,0.00257029]
[1763969804811,0.38137,87182.0,87181.0,0.00257029]
[1763969805011,0.43107803,87182.0,87181.0,0.00257029]
[1763969805381,0.38137,87182.0,87181.0,0.00257029]
[1763969806401,0.43107803,87182.0,87181.0,0.00257029]
[1763969806939,2.43107803,87182.0,87181.0,0.00257029]
[1763969807104,2.10807803,87182.0,87181.0,0.00257029]
[1763969807655,0.01807721,87191.0,87181.0,0.00257029]
[1763969807656,2.0,87189.0,87181.0,0.00257029]
[1763969807898,2.0,87184.0,87182.0,0.01512]
[1763969808070,2.0,87187.0,87182.0,0.01512]
[1763969808245,2.0,87190.0,87183.0,0.02168]
[1763969808652,0.01807721,87191.0,87189.0,0.02168]
[1763969808817,0.86978051,87200.0,87190.0,0.02168]
[1763969809017,2.0,87199.0,87190.0,0.02168]
[1763969809231,2.0180892,87199.0,87190.0,0.02168]
[1763969809437,2.0,87197.0,87184.0,0.03452]
[1763969810060,0.323,87198.0,87184.0,0.03452]
[1763969810434,0.0180892,87199.0,87197.0,0.02806]
[1763969810631,0.86978051,87207.0,87198.0,0.02419]
[1763969810831,0.323,87203.0,87198.0,0.02419]
[1763969811076,0.323,87199.0,87198.0,0.02419]
[1763969811271,0.323,87206.0,87198.0,0.02419]
[1763969811483,0.323,87202.0,87198.0,0.02419]
[1763969811888,0.01745947,87203.0,87201.0,0.02419]
[1763969812090,0.01646,87219.0,87202.0,0.02419]
[1763969812091,0.5,87218.0,87202.0,0.02419]
[1763969812305,2.0,87218.0,87202.0,0.02419]
[1763969812510,0.323,87215.0,87203.0,0.03682]
[1763969812729,0.323,87211.0,87203.0,0.03682]
[1763969813245,0.323,87211.0,87210.0,0.01526]
[1763969813436,0.323,87211.0,87210.0,0.03945]
[1763969813627,0.323,87211.0,87203.0,0.03682]
[1763969813790,0.323,87211.0,87205.0,0.0182]
[1763969813989,0.323,87213.0,87210.0,0.02419]
[1763969814303,0.323,87211.0,87205.0,0.0182]
[1763969814905,0.32650069,87211.0,87205.0,0.0182]
[1763969816113,0.32650069,87211.0,87210.0,0.02419]
[1763969816114,0.00350069,87211.0,87210.0,0.02419]
[1763969816530,0.00350069,87211.0,87210.0,0.06101]
[1763969820105,0.00350069,87211.0,87210.0,0.02419]
[1763969820265,0.00350069,87211.0,87210.0,0.02519]
[1763969820470,0.00350069,87211.0,87210.0,0.06301]
[1763969820899,0.02749069,87211.0,87210.0,0.002]
[1763969821101,0.00350069,87211.0,87210.0,0.002]
[1763969821280,0.00350069,87211.0,87210.0,0.02619]
[1763969821686,0.00350069,87211.0,87210.0,0.02519]
[1763969821893,0.00350069,87211.0,87210.0,0.001]
[1763969822072,0.02749069,87211.0,87210.0,0.001]
[1763969822273,0.00350069,87211.0,87210.0,0.001]
[1763969823314,0.00350069,87211.0,87210.0,0.06201]
[1763969823527,0.00350069,87211.0,87210.0,0.06101]
[1763969825030,0.00350069,87211.0,87210.0,0.06301]
[1763969828415,0.00350069,87211.0,87210.0,0.02619]
[1763969828568,0.00350069,87211.0,87210.0,0.0628]
[1763969829970,0.00350069,87211.0,87210.0,0.02619]
[1763969830585,0.00350069,87211.0,87210.0,0.002]
[1763969830586,0.02696069,87211.0,87210.0,0.002]
[1763969830899,0.00350069,87211.0,87210.0,0.002]
[1763969831289,0.00350069,87211.0,87199.0,0.09768936]
[1763969831531,0.323,87209.0,87199.0,0.09768936]
[1763969831911,0.323,87209.0,87197.0,0.00387]
[1763969831912,0.42068936,87209.0,87197.0,0.00387]
[1763969832111,0.42068936,87209.0,87136.0,0.14604932]
[1763969832112,0.02346,87198.0,87184.0,0.03661]
[1763969832332,0.02346,87198.0,87184.0,0.03671802]
[1763969832509,0.01724,87204.0,87185.0,0.09768936]
[1763969832708,0.01724,87204.0,87186.0,0.03661]
[1763969833311,0.42068936,87209.0,87187.0,0.02293919]
[1763969833510,0.42068936,87209.0,87188.0,0.03661]
[1763969833722,0.42068936,87209.0,87189.0,0.02293867]
[1763969834130,0.03332,87190.0,87184.0,0.00010802]
[1763969834536,0.21034561,87193.0,87184.0,0.00010802]
[1763969835626,0.59332161,87200.0,87192.0,0.04121]
[1763969835827,0.00986,87204.0,87193.0,0.02433]
[1763969836036,2.0,87207.0,87193.0,0.06094]
[1763969836353,2.0,87208.0,87193.0,0.06094]
[1763969836553,2.0,87202.0,87194.0,0.03661]
[1763969836925,0.323,87201.0,87194.0,0.03661]
[1763969837377,0.323,87201.0,87200.0,0.02433]
[1763969838013,2.323,87209.0,87200.0,0.06094]
[1763969838323,2.323,87209.0,87184.0,0.00010802]
[1763969838324,0.01871,87201.0,87184.0,0.00010802]
[1763969838519,0.323,87193.0,87184.0,0.00010802]
[1763969840309,0.04970803,87192.0,87184.0,0.00010802]
[1763969841177,0.323,87193.0,87184.0,0.00010802]
[1763969842563,0.42068936,87193.0,87184.0,0.00010802]
[1763969843721,0.04970803,87190.0,87184.0,0.00010802]
[1763969844545,0.47039739,87193.0,87184.0,0.00010802]
[1763969845193,0.42068936,87193.0,87184.0,0.00010802]
[1763969845370,0.04970803,87189.0,87184.0,0.00010802]
[1763969846332,0.01871,87185.0,87184.0,0.00010802]
[1763969846523,0.06841803,87185.0,87184.0,0.00010802]
[1763969847028,0.01871,87185.0,87184.0,0.00010802]
[1763969847235,0.08712803,87185.0,87184.0,0.00010802]
[1763969848191,2.75264865,87185.0,87184.0,0.00010802]
[1763969848388,2.80475114,87185.0,87184.0,0.00010802]
[1763969848615,2.83951846,87185.0,87184.0,0.00010802]
[1763969848879,2.75210357,87185.0,87184.0,0.00010802]
[1763969849081,2.75110357,87185.0,87184.0,0.00010802]
[1763969849704,2.75210357,87185.0,87184.0,0.00010802]
[1763969850253,2.72739509,87185.0,87184.0,0.00010802]
[1763969851489,2.72739509,87185.0,87181.0,0.00217801]
[1763969851490,2.60450764,87182.0,87181.0,0.00217801]
[1763969851845,2.68819604,87182.0,87181.0,0.00217801]
[1763969852812,2.69119604,87182.0,87181.0,0.00217801]
[1763969854503,2.46179089,87182.0,87181.0,0.00217801]
[1763969854703,2.69119604,87182.0,87181.0,0.00217801]
[1763969855304,2.72571,87182.0,87181.0,0.00217801]
[1763969855489,2.49630485,87182.0,87181.0,0.00217801]
[1763969856388,2.49530485,87182.0,87181.0,0.00217801]
[1763969856722,2.72471,87182.0,87181.0,0.00217801]
[1763969856935,2.49530485,87182.0,87181.0,0.00217801]
[1763969857509,2.49330485,87182.0,87181.0,0.00217801]
[1763969857686,2.49430485,87182.0,87181.0,0.00217801]
[1763969857888,2.72471,87182.0,87181.0,0.00217801]
[1763969858878,2.49530485,87182.0,87181.0,0.00217801]
[1763969859293,2.46079089,87182.0,87181.0,0.00217801]
[1763969859704,2.4086884,87182.0,87181.0,0.00217801]
[1763969860475,2.45474324,87182.0,87181.0,0.00217801]
[1763969860847,2.00204037,87182.0,87181.0,0.00217801]
[1763969861047,2.03598037,87182.0,87181.0,0.00217801]
[1763969861429,2.04598037,87182.0,87181.0,0.00217801]
[1763969862395,2.01901037,87182.0,87181.0,0.00217801]
[1763969862830,2.32504037,87182.0,87181.0,0.00217801]
[1763969863245,2.34201037,87182.0,87181.0,0.00217801]
[1763969864073,2.36898037,87182.0,87181.0,0.00217801]
[1763969866945,2.14181332,87182.0,87181.0,0.00217801]
[1763969872138,2.14166233,87182.0,87181.0,0.00217801]
[1763969872339,1.96369363,87182.0,87181.0,0.00217801]
[1763969872538,1.93672363,87182.0,87181.0,0.00217801]
[1763969872789,1.59675363,87182.0,87181.0,0.01875801]
[1763969872991,1.59675363,87182.0,87181.0,0.07299801]
[1763969873191,0.00204037,87182.0,87181.0,0.07299801]
[1763969873824,0.00104037,87182.0,87181.0,0.07299801]
[1763969874019,4.037e-05,87182.0,87181.0,0.07299801]
[1763969874630,4.037e-05,87182.0,87181.0,0.07399801]
[1763969879619,0.03450205,87196.0,87184.0,0.02235]
[1763969879946,2.0,87195.0,87184.0,0.02235]
[1763969880926,2.0,87193.0,87184.0,0.02235]
[1763969881798,0.323,87190.0,87184.0,0.02235]
[1763969883254,0.323,87190.0,87189.0,0.02235]
[1763969883449,2.0,87203.0,87189.0,0.02235]
[1763969883648,0.87068682,87200.0,87189.0,0.02235]
[1763969883801,0.323,87198.0,87189.0,0.02235]
[1763969883988,0.323,87198.0,87197.0,0.01838]
[1763969884199,0.323,87198.0,87197.0,0.04266]
[1763969884398,0.323,87198.0,87197.0,0.07787]
[1763969884804,0.42068936,87209.0,87197.0,0.07787]
[1763969885016,0.323,87205.0,87197.0,0.07787]
[1763969885215,0.323,87203.0,87198.0,0.03521]
[1763969885426,0.323,87199.0,87198.0,0.03521]
[1763969885624,0.323,87199.0,87197.0,0.01838]
[1763969885833,0.323,87199.0,87198.0,0.02428]
[1763969886026,0.323,87199.0,87198.0,0.05949]
[1763969886803,0.03449633,87213.0,87198.0,0.05949]
[1763969887019,0.323,87219.0,87197.0,0.01838]
[1763969887020,2.0,87217.0,87212.0,0.04266]
[1763969887241,0.323,87215.0,87214.0,0.02428]
[1763969887452,2.323,87215.0,87214.0,0.02428]
[1763969888773,2.323,87213.0,87212.0,0.01838]
[1763969889111,2.323,87213.0,87212.0,0.04266]
[1763969889311,2.0,87213.0,87212.0,0.07787]
[1763969889530,2.0,87214.0,87212.0,0.07787]
[1763969889737,0.323,87220.0,87214.0,0.02428]
[1763969889936,0.323,87216.0,87214.0,0.02228]
[1763969890228,0.323,87215.0,87214.0,0.02228]
[1763969890449,0.323,87214.0,87212.0,0.05359]
[1763969890667,0.323,87214.0,87213.0,0.05949]
[1763969891771,0.323,87219.0,87213.0,0.05949]
[1763969891949,0.323,87215.0,87213.0,0.05949]
[1763969892126,0.323,87215.0,87214.0,0.02428]
[1763969892310,0.323,87215.0,87214.0,0.05949]
[1763969893519,0.323,87219.0,87214.0,0.05949]
[1763969893719,0.323,87217.0,87214.0,0.05949]
[1763969893969,0.323,87215.0,87214.0,0.02428]
[1763969894183,0.323,87215.0,87212.0,0.01838]
[1763969894418,0.323,87215.0,87214.0,0.02428]
[1763969894820,0.323,87215.0,87214.0,0.06049]
[1763969895033,2.0,87222.0,87214.0,0.05949]
[1763969895235,0.323,87219.0,87215.0,0.03521]
[1763969895605,2.323,87223.0,87222.0,0.07747014]
[1763969896046,2.323,87223.0,87222.0,0.04226014]
[1763969897523,2.33975815,87223.0,87222.0,0.04226014]
[1763969897726,0.01675815,87223.0,87222.0,0.07747014]
[1763969897930,0.323,87239.0,87222.0,0.07747014]
[1763969898129,0.323,87237.0,87223.0,0.03521]
[1763969898338,0.323,87233.0,87223.0,0.03521]
[1763969898536,0.323,87229.0,87223.0,0.03521]
[1763969898865,0.01616487,87233.0,87232.0,0.04226014]
[1763969898866,2.33916487,87233.0,87232.0,0.04226014]
[1763969899073,2.33950358,87233.0,87232.0,0.04226014]
[1763969899255,2.33950358,87233.0,87232.0,0.07747014]
[1763969899853,2.33959345,87233.0,87232.0,0.07747014]
[1763969900277,2.33959345,87233.0,87232.0,0.04226014]
[1763969900744,2.33959345,87233.0,87232.0,0.07747014]
[1763969900977,0.33959345,87233.0,87232.0,0.07747014]
[1763969901181,0.01659345,87233.0,87232.0,0.07747014]
[1763969901548,0.01659345,87233.0,87232.0,0.07847014]
[1763969902397,0.01659345,87233.0,87232.0,0.04326014]
[1763969902720,0.01659345,87233.0,87232.0,0.07847014]
[1763969906874,0.01659345,87233.0,87232.0,0.04326014]
[1763969907489,0.01659345,87233.0,87232.0,0.07847014]
[1763969910312,0.000251,87243.0,87232.0,0.07847014]
[1763969910524,0.000251,87243.0,87242.0,0.12196936]
[1763969910932,0.01699354,87243.0,87242.0,0.15717936]
[1763969911150,0.000251,87243.0,87242.0,0.15717936]
[1763969911947,0.000251,87243.0,87242.0,0.15917936]
[1763969913712,0.01642865,87251.0,87248.0,0.02125]
[1763969913909,0.0002,87280.0,87279.0,0.05290028]
[1763969914079,0.0002,87280.0,87279.0,0.02045028]
[1763969914900,0.01678469,87280.0,87279.0,0.05290028]
[1763969915103,0.0002,87280.0,87279.0,0.02045028]
[1763969915742,0.0002,87280.0,87279.0,0.05290028]
[1763969916012,0.0002,87280.0,87278.0,0.01226]
[1763969916359,0.01688021,87280.0,87278.0,0.01226]
[1763969916560,0.0002,87280.0,87278.0,0.01226]
[1763969916808,0.01636126,87280.0,87278.0,0.01226]
[1763969916963,0.01636126,87280.0,87270.0,0.01226]
[1763969917170,0.88641622,87280.0,87270.0,0.01226]
[1763969917379,0.88641622,87280.0,87278.0,0.002]
[1763969917582,0.01636126,87280.0,87278.0,0.002]
[1763969917781,0.01636126,87280.0,87270.0,0.01226]
[1763969917782,2.01929,87279.0,87270.0,0.01226]
[1763969918008,2.0,87278.0,87270.0,0.01326]
[1763969918208,2.0,87278.0,87270.0,0.01426]